Workbook

Sheet Tabelle1
B2: Eigenfertigung oder Fremdbezug? (make or buy?)
B4: benötigte Menge in Stück | C4: 9600
B5: Fremdbezug
B6: Bezugspreis je Stück | C6: 59.9
B7: Eigenfertigung | D7: kritische Menge | E7: =Tabelle2!I3 -> 12453.30012
B8: Kapazitätsgrenze | C8: 20000 | D8: Kosten bei Eigenfertigung | E8: =Tabelle2!I4 -> 689600
B9: variable Stückkosten | C9: 19.75 | D9: Kosten bei Fremdbezug | E9: =Tabelle2!I5 -> 575040
B10: fixe Kosten | C10: 500000 | D10: Kostenvorteil bei Eigenfertigung | E10: =Tabelle2!I6 -> -114560
B11: Empfehlung | C11: =IF(E10>0,"Eigenfertigung","Fremdbezug") -> Fremdbezug | D11: Ersparnis | E11: =IF(E9<E8,E8-E9,E9-E8) -> 114560
B13: =E7 -> 12453.30012 | C13: 0 | D13: =B13 -> 12453.30012
B14: =B13 -> 12453.30012 | C14: =VLOOKUP(E7,Tabelle2!B15:E35,4) -> 737000 | D14: =C14 -> 737000

Sheet Tabelle2
B3: benötigte Menge in Stück | D3: =Tabelle1!C4 -> 9600 | F3: kritische Menge | I3: =D9/(D5-D8) -> 12453.30012
B4: Fremdbezug | F4: Kosten der Eigenfertigung | I4: =D9+(D3*D8) -> 689600
B5: Bezugspreis je Stück | D5: =Tabelle1!C6 -> 59.9 | F5: Kosten bei Fremdbezug | I5: =D3*D5 -> 575040
B6: Eigenfertigung | F6: Kostenvorteil bei Eigenfertigung | I6: =I5-I4 -> -114560
B7: Kapazitätsgrenze | D7: =Tabelle1!C8 -> 20000
B8: Variable Stückkosten | D8: =Tabelle1!C9 -> 19.75
B9: Fixkosten | D9: =Tabelle1!C10 -> 500000
C11: Eigenfertigung (make) | G11: Fremdbezug (buy) | I11: Stückkosten- vorteil bei Eigenfertigung
D12: variable Kosten | E12: Gesamt- kosten | F12: Stückkosten | G12: Bezugspreis je Stück | H12: Gesamtpreis
B13: Menge | C13: Fixkosten
B15: 0 | C15: =$D$9 -> 500000 | D15: =$D$8*B15 -> 0 | E15: =C15+D15 -> 500000 | G15: =$D$5 -> 59.9 | H15: =$D$5*B15 -> 0
B16: =$B$35/20 -> 1000 | C16: =$D$9 -> 500000 | D16: =$D$8*B16 -> 19750 | E16: =C16+D16 -> 519750 | F16: =E16/B16 -> 519.75 | G16: =$D$5 -> 59.9 | H16: =$D$5*B16 -> 59900 | I16: =G16-F16 -> -459.85
B17: =B16+$B$16 -> 2000 | C17: 500000 | D17: 39500 | E17: 539500 | F17: 269.75 | G17: 59.9 | H17: 119800 | I17: -209.85
B18: 3000 | C18: 500000 | D18: 59250 | E18: 559250 | F18: 186.4166667 | G18: 59.9 | H18: 179700 | I18: -126.5166667
B19: 4000 | C19: 500000 | D19: 79000 | E19: 579000 | F19: 144.75 | G19: 59.9 | H19: 239600 | I19: -84.85
B20: 5000 | C20: 500000 | D20: 98750 | E20: 598750 | F20: 119.75 | G20: 59.9 | H20: 299500 | I20: -59.85
B21: 6000 | C21: 500000 | D21: 118500 | E21: 618500 | F21: 103.0833333 | G21: 59.9 | H21: 359400 | I21: -43.18333333
B22: 7000 | C22: 500000 | D22: 138250 | E22: 638250 | F22: 91.17857143 | G22: 59.9 | H22: 419300 | I22: -31.27857143
B23: 8000 | C23: 500000 | D23: 158000 | E23: 658000 | F23: 82.25 | G23: 59.9 | H23: 479200 | I23: -22.35
B24: 9000 | C24: 500000 | D24: 177750 | E24: 677750 | F24: 75.30555556 | G24: 59.9 | H24: 539100 | I24: -15.40555556
B25: 10000 | C25: 500000 | D25: 197500 | E25: 697500 | F25: 69.75 | G25: 59.9 | H25: 599000 | I25: -9.85
B26: 11000 | C26: 500000 | D26: 217250 | E26: 717250 | F26: 65.20454545 | G26: 59.9 | H26: 658900 | I26: -5.304545455
B27: 12000 | C27: 500000 | D27: 237000 | E27: 737000 | F27: 61.41666667 | G27: 59.9 | H27: 718800 | I27: -1.516666667
B28: 13000 | C28: 500000 | D28: 256750 | E28: 756750 | F28: 58.21153846 | G28: 59.9 | H28: 778700 | I28: 1.688461538
B29: 14000 | C29: 500000 | D29: 276500 | E29: 776500 | F29: 55.46428571 | G29: 59.9 | H29: 838600 | I29: 4.435714286
B30: 15000 | C30: 500000 | D30: 296250 | E30: 796250 | F30: 53.08333333 | G30: 59.9 | H30: 898500 | I30: 6.816666667
B31: 16000 | C31: 500000 | D31: 316000 | E31: 816000 | F31: 51 | G31: 59.9 | H31: 958400 | I31: 8.9
B32: 17000 | C32: 500000 | D32: 335750 | E32: 835750 | F32: 49.16176471 | G32: 59.9 | H32: 1018300 | I32: 10.73823529
B33: 18000 | C33: 500000 | D33: 355500 | E33: 855500 | F33: 47.52777778 | G33: 59.9 | H33: 1078200 | I33: 12.37222222
B34: 19000 | C34: 500000 | D34: 375250 | E34: 875250 | F34: 46.06578947 | G34: 59.9 | H34: 1138100 | I34: 13.83421053
B35: =$D$7 -> 20000 | C35: 500000 | D35: 395000 | E35: 895000 | F35: 44.75 | G35: 59.9 | H35: 1198000 | I35: 15.15

Sheet Tabelle3
